[Event "CZE-ch U14 Girls 2020"]
[Site "Kouty nad Desnou"]
[Date "2020.03.07"]
[Round "1.16"]
[White "Ticha, Sofie"]
[Black "Fizerova, Lucie"]
[Result "0-1"]
[ECO "C42"]
[WhiteElo "1216"]
[BlackElo "1574"]
[Annotator "NA RC"]
[PlyCount "158"]
[EventDate "2020.03.07"]
[EventCountry "CZE"]
[SourceTitle "playchess.com"]
[Source "ChessBase"]
[SourceQuality "1"]
[TimeControl "5400+30"]

1. e4 {[%emt 0:00:00]} e5 {[%emt 0:00:00]} 2. Nf3 {[%emt 0:00:00]} Nf6 {[%emt 0:00:03]} 3. Nxe5 {[%emt 0:00:40]} d6 {[%emt 0:00:27]} 4. Nf3 {[%emt 0:00:17]} Nxe4 {[%emt 0:00:23]} 5. Nc3 {[%emt 0:01:11]} Nf6 {[%emt 0:00:51]} 6. d4 {[%emt 0:02:29]} Be7 {[%emt 0:01:27]} 7. Bd3 {[%emt 0:00:47]} Nbd7 {[%emt 0:05:53]} 8. O-O {[%emt 0:01:03]} Nb6 {[%emt 0:03:20]} 9. Re1 {[%emt 0:03:52]} h6 {[%emt 0:03:12]} 10. Nh4 {[%emt 0:01:55]} O-O {[%emt 0:24:21]} 11. Nf5 {[%emt 0:06:52]} Bxf5 {[%emt 0:01:16]} 12. Bxf5 {[%emt 0:00:07]} d5 {[%emt 0:01:00]} 13. Bf4 {[%emt 0:01:26]} a6 {[%emt 0:02:44]} 14. Qf3 {[%emt 0:02:36]} Bd6 {[%emt 0:04:16]} 15. Rad1 {[%emt 0:09:15]} Bxf4 {[%emt 0:05:21]} 16. Qxf4 {[%emt 0:00:31]} Nc4 {[%emt 0:01:46]} 17. Rb1 {[%emt 0:01:02]} Nd6 {[%emt 0:02:08]} 18. Bd3 {[%emt 0:01:39]} Qd7 {[%emt 0:01:29]} 19. Re2 {[%emt 0:00:23]} Rfe8 {[%emt 0:01:48]} 20. Rbe1 {[%emt 0:00:44]} Rxe2 {[%emt 0:00:55]} 21. Rxe2 {[%emt 0:00:07]} Re8 {[%emt 0:00:05]} 22. Qf3 {[%emt 0:02:13]} Rxe2 {[%emt 0:05:16]} 23. Bxe2 {[%emt 0:00:41]} Nde4 {[%emt 0:03:05]} 24. h3 {[%emt 0:06:50]} Nxc3 {[%emt 0:06:00]} 25. Qxc3 {[%emt 0:00:18]} Ne4 {[%emt 0:04:50]} 26. Qf3 {[%emt 0:06:16]} Qa4 {[%emt 0:12:15]} 27. Qf5 {[%emt 0:00:37]} Nd6 {[%emt 0:00:27]} 28. Qd3 {[%emt 0:10:18]} Qxa2 {[%emt 0:00:52]} 29. Qc3 {[%emt 0:00:29]} c6 {[%emt 0:04:07]} 30. Qg3 {[%emt 0:01:21]} Qb1+ {[%emt 0:02:57]} 31. Kh2 {[%emt 0:04:34]} Qe1 {[%emt 0:01:24]} 32. Bg4 {[%emt 0:07:27]} Qe7 {[%emt 0:00:19]} 33. b3 {[%emt 0:04:32]} Qd8 {[%emt 0:00:47]} 34. Qe5 {[%emt 0:01:04]} Ne4 {[%emt 0:00:16]} 35. Kg1 {[%emt 0:02:54]} Nf6 {[%emt 0:00:41]} 36. Qf5 {[%emt 0:00:40]} Nxg4 {[%emt 0:00:34]} 37. Qxg4 {[%emt 0:00:17]} Qe8 {[%emt 0:00:22]} 38. Qd1 {[%emt 0:01:20]} Qe4 {[%emt 0:00:24]} 39. Kf1 {[%emt 0:00:48]} Kf8 {[%emt 0:00:50]} 40. Qd2 {[%emt 0:00:00]} Qe7 {[%emt 0:00:00]} 41. Qf4 {[%emt 0:00:00]} Kg8 {[%emt 0:00:00]} 42. c3 {[%emt 0:00:00]} Qa3 {[%emt 0:00:00]} 43. Qg4 {[%emt 0:00:00]} Qc1+ {[%emt 0:00:00]} 44. Ke2 {[%emt 0:00:00]} Qc2+ {[%emt 0:00:00]} 45. Kf1 {[%emt 0:00:00]} f5 {[%emt 0:00:00]} 46. Qh5 {[%emt 0:00:00]} Qxb3 {[%emt 0:00:00]} 47. Qe8+ {[%emt 0:00:00]} Kh7 {[%emt 0:00:00]} 48. Qh5 {[%emt 0:00:00]} g6 {[%emt 0:00:00]} 49. Qf3 {[%emt 0:00:00]} Qb1+ {[%emt 0:00:00]} 50. Ke2 {[%emt 0:00:00]} a5 {[%emt 0:00:00]} 51. Kd2 {[%emt 0:00:00]} Qe4 {[%emt 0:00:00]} 52. Qg3 {[%emt 0:00:00]} f4 {[%emt 0:00:00]} 53. Qg4 {[%emt 0:00:00]} Qf5 {[%emt 0:00:00]} 54. Qh4 {[%emt 0:00:00]} Qg5 {[%emt 0:00:00]} 55. Qg4 {[%emt 0:00:00]} Qxg4 {[%emt 0:00:00]} 56. hxg4 {[%emt 0:00:00]} g5 {[%emt 0:00:00]} 57. Kc2 {[%emt 0:00:00]} b5 {[%emt 0:00:00]} 58. Kb3 {[%emt 0:00:00]} Kg7 {[%emt 0:00:00]} 59. f3 {[%emt 0:00:00]} Kf7 {[%emt 0:00:04]} 60. Ka3 {[%emt 0:00:00]} Ke7 {[%emt 0:00:21]} 61. Kb3 {[%emt 0:00:00]} Kd6 {[%emt 0:00:15]} 62. Ka3 {[%emt 0:00:00]} c5 {[%emt 0:00:56]} 63. Kb3 {[%emt 0:00:00]} cxd4 {[%emt 0:00:50]} 64. cxd4 {[%emt 0:00:00]} Kc6 {[%emt 0:00:02]} 65. Kc3 {[%emt 0:00:00]} b4+ {[%emt 0:00:11]} 66. Kb3 {[%emt 0:00:00]} Kb5 {[%emt 0:00:05]} 67. Kb2 {[%emt 0:00:00]} a4 {[%emt 0:00:01]} 68. Kc2 {[%emt 0:00:00]} Kc4 {[%emt 0:00:10]} 69. Kb2 {[%emt 0:00:00]} Kxd4 {[%emt 0:00:34]} 70. Kc2 {[%emt 0:00:00]} Ke3 {[%emt 0:00:11]} 71. Kd1 {[%emt 0:00:00]} a3 {[%emt 0:00:08]} 72. Kc1 {[%emt 0:00:00]} b3 {[%emt 0:00:32]} 73. Kb1 {[%emt 0:00:00]} a2+ {[%emt 0:00:13]} 74. Kb2 {[%emt 0:00:00]} Kd4 {[%emt 0:00:36]} 75. Ka1 {[%emt 0:00:00]} Kc3 {[%emt 0:00:35]} 76. g3 {[%emt 0:00:00]} b2+ {[%emt 0:00:03]} 77. Kxa2 {[%emt 0:00:00]} Kc2 {[%emt 0:00:05]} 78. gxf4 {[%emt 0:00:00]} b1=Q+ {[%emt 0:00:06]} 79. Ka3 {[%emt 0:00:00]} Qb3# {[%emt 0:00:02]} 0-1

[Event "CZE-ch U14 Girls 2020"]
[Site "Kouty nad Desnou"]
[Date "2020.03.07"]
[Round "1.17"]
[White "Nagyova, Daniela"]
[Black "Glasbergerova, Lucie"]
[Result "0-1"]
[ECO "C54"]
[WhiteElo "1560"]
[BlackElo "1203"]
[Annotator "NA RC"]
[PlyCount "116"]
[EventDate "2020.03.07"]
[EventCountry "CZE"]
[SourceTitle "playchess.com"]
[Source "ChessBase"]
[SourceQuality "1"]
[TimeControl "5400+30"]

1. e4 {[%emt 0:00:00]} e5 {[%emt 0:00:00]} 2. Nf3 {[%emt 0:00:00]} Nc6 {[%emt 0:00:00]} 3. Bc4 {[%emt 0:00:07]} Bc5 {[%emt 0:00:00]} 4. c3 {[%emt 0:00:23]} Nf6 {[%emt 0:00:02]} 5. d4 {[%emt 0:00:16]} exd4 {[%emt 0:00:10]} 6. e5 {[%emt 0:00:20]} Ne4 {[%emt 0:05:59]} 7. cxd4 {[%emt 0:01:46]} Bb4+ {[%emt 0:00:32]} 8. Nbd2 {[%emt 0:01:33]} Bxd2+ {[%emt 0:02:11]} 9. Bxd2 {[%emt 0:00:37]} d5 {[%emt 0:03:16]} 10. Bb5 {[%emt 0:01:36]} Bd7 {[%emt 0:02:05]} 11. Bxc6 {[%emt 0:00:55]} Bxc6 {[%emt 0:00:20]} 12. Bb4 {[%emt 0:04:55]} a5 {[%emt 0:04:20]} 13. Ba3 {[%emt 0:01:14]} b5 {[%emt 0:14:32]} 14. Rc1 {[%emt 0:10:28]} Qd7 {[%emt 0:11:21]} 15. Bc5 {[%emt 0:02:54]} b4 {[%emt 0:05:34]} 16. Nd2 {[%emt 0:09:15]} Nxc5 {[%emt 0:01:43]} 17. Rxc5 {[%emt 0:01:24]} Bb5 {[%emt 0:00:31]} 18. Qf3 {[%emt 0:05:09]} c6 {[%emt 0:01:47]} 19. Nb3 {[%emt 0:02:21]} a4 {[%emt 0:02:36]} 20. Nc1 {[%emt 0:01:32]} Qb7 {[%emt 0:02:46]} 21. Qg3 {[%emt 0:05:13]} O-O {[%emt 0:06:08]} 22. f4 {[%emt 0:01:11]} Rfe8 {[%emt 0:02:04]} 23. Kf2 {[%emt 0:02:14]} Qd7 {[%emt 0:06:15]} 24. Qg5 {[%emt 0:03:00]} Qe7 {[%emt 0:03:02]} 25. Qxe7 {[%emt 0:03:12]} Rxe7 {[%emt 0:00:13]} 26. f5 {[%emt 0:01:01]} Rc7 {[%emt 0:11:38]} 27. g4 {[%emt 0:01:39]} Bc4 {[%emt 0:04:32]} 28. h4 {[%emt 0:01:37]} b3 {[%emt 0:04:18]} 29. a3 {[%emt 0:00:58]} Kf8 {[%emt 0:03:04]} 30. g5 {[%emt 0:00:49]} g6 {[%emt 0:00:50]} 31. f6 {[%emt 0:00:39]} Ke8 {[%emt 0:00:27]} 32. h5 {[%emt 0:00:21]} Kd7 {[%emt 0:00:35]} 33. hxg6 {[%emt 0:00:38]} hxg6 {[%emt 0:00:16]} 34. Ke3 {[%emt 0:03:09]} Ke6 {[%emt 0:00:48]} 35. Kf4 {[%emt 0:01:34]} Rb8 {[%emt 0:00:58]} 36. Kg4 {[%emt 0:01:34]} Rb5 {[%emt 0:00:53]} 37. Rxb5 {[%emt 0:00:59]} Bxb5 {[%emt 0:00:08]} 38. Rh8 {[%emt 0:01:02]} c5 {[%emt 0:01:03]} 39. Kf4 {[%emt 0:15:12]} cxd4 {[%emt 0:00:32]} 40. Rd8 {[%emt 0:00:00]} Rc6 {[%emt 0:00:00]} 41. Re8+ {[%emt 0:00:00]} Kd7 {[%emt 0:00:00]} 42. Re7+ {[%emt 0:00:00]} Kd8 {[%emt 0:00:00]} 43. Rxf7 {[%emt 0:00:00]} Rxc1 {[%emt 0:00:00]} 44. e6 {[%emt 0:00:00]} Be8 {[%emt 0:00:00]} 45. Rf8 {[%emt 0:00:00]} Re1 {[%emt 0:00:00]} 46. e7+ {[%emt 0:00:00]} Kd7 {[%emt 0:00:00]} 47. Rh8 {[%emt 0:00:00]} d3 {[%emt 0:00:00]} 48. Rh2 {[%emt 0:00:00]} Re2 {[%emt 0:00:00]} 49. Rh1 {[%emt 0:00:00]} Rxb2 {[%emt 0:00:00]} 50. Ke5 {[%emt 0:00:00]} d2 {[%emt 0:00:00]} 51. Kxd5 {[%emt 0:00:00]} Rc2 {[%emt 0:00:00]} 52. Rd1 {[%emt 0:00:35]} b2 {[%emt 0:00:00]} 53. Ke5 {[%emt 0:00:40]} b1=Q {[%emt 0:00:00]} 54. Rxb1 {[%emt 0:00:10]} Rc1 {[%emt 0:00:00]} 55. Rb7+ {[%emt 0:02:21]} Kc6 {[%emt 0:00:00]} 56. f7 {[%emt 0:01:07]} Bxf7 {[%emt 0:00:00]} 57. Kf6 {[%emt 0:00:56]} Kxb7 {[%emt 0:00:00]} 58. Kxf7 {[%emt 0:00:12]} Re1 {[%emt 0:00:00]} 0-1

[Event "CZE-ch U14 Girls 2020"]
[Site "Kouty nad Desnou"]
[Date "2020.03.07"]
[Round "1.18"]
[White "Spacilova, Klara"]
[Black "Sulcova, Tereza Radmila"]
[Result "1-0"]
[ECO "C13"]
[WhiteElo "1188"]
[BlackElo "1555"]
[Annotator "NA RC"]
[PlyCount "110"]
[EventDate "2020.03.07"]
[EventCountry "CZE"]
[SourceTitle "playchess.com"]
[Source "ChessBase"]
[SourceQuality "1"]
[TimeControl "5400+30"]

1. e4 {[%emt 0:00:00]} e6 {[%emt 0:00:00]} 2. d4 {[%emt 0:00:00]} d5 {[%emt 0:00:00]} 3. Nc3 {[%emt 0:00:02]} Nf6 {[%emt 0:00:15]} 4. Bg5 {[%emt 0:00:28]} Be7 {[%emt 0:00:55]} 5. Bxf6 {[%emt 0:02:53]} Bxf6 {[%emt 0:00:19]} 6. Nf3 {[%emt 0:00:24]} Nd7 {[%emt 0:03:31]} 7. Qd2 {[%emt 0:01:26]} dxe4 {[%emt 0:01:00]} 8. Nxe4 {[%emt 0:00:22]} O-O {[%emt 0:02:37]} 9. Be2 {[%emt 0:00:23]} e5 {[%emt 0:02:39]} 10. O-O-O {[%emt 0:01:57]} exd4 {[%emt 0:00:52]} 11. Nxd4 {[%emt 0:00:17]} c5 {[%emt 0:01:20]} 12. Nxf6+ {[%emt 0:00:46]} Nxf6 {[%emt 0:00:10]} 13. Nb3 {[%emt 0:00:47]} Qxd2+ {[%emt 0:00:23]} 14. Rxd2 {[%emt 0:00:38]} Ne4 {[%emt 0:00:18]} 15. Rd5 {[%emt 0:00:30]} Be6 {[%emt 0:03:10]} 16. Re5 {[%emt 0:01:45]} Bxb3 {[%emt 0:01:01]} 17. Rxe4 {[%emt 0:01:45]} Be6 {[%emt 0:01:12]} 18. Bf3 {[%emt 0:00:28]} Rad8 {[%emt 0:00:30]} 19. Ra4 {[%emt 0:01:47]} Rd4 {[%emt 0:02:22]} 20. Rxa7 {[%emt 0:02:03]} b5 {[%emt 0:00:16]} 21. Ra5 {[%emt 0:01:51]} Bd7 {[%emt 0:01:03]} 22. Rd1 {[%emt 0:03:24]} Rxd1+ {[%emt 0:06:40]} 23. Bxd1 {[%emt 0:00:13]} Bc6 {[%emt 0:00:13]} 24. f3 {[%emt 0:00:16]} Re8 {[%emt 0:02:12]} 25. c4 {[%emt 0:01:19]} Rb8 {[%emt 0:02:41]} 26. Be2 {[%emt 0:02:28]} Kf8 {[%emt 0:07:33]} 27. cxb5 {[%emt 0:01:32]} Bd5 {[%emt 0:00:16]} 28. b3 {[%emt 0:00:54]} Ke7 {[%emt 0:01:04]} 29. Bc4 {[%emt 0:02:24]} Kd6 {[%emt 0:03:48]} 30. Ra6+ {[%emt 0:00:53]} Ke5 {[%emt 0:01:09]} 31. f4+ {[%emt 0:02:15]} Ke4 {[%emt 0:00:45]} 32. g3 {[%emt 0:00:30]} Bxc4 {[%emt 0:01:27]} 33. bxc4 {[%emt 0:01:19]} Kd3 {[%emt 0:00:12]} 34. Ra4 {[%emt 0:02:06]} Kc3 {[%emt 0:01:23]} 35. Kd1 {[%emt 0:01:16]} Rb7 {[%emt 0:01:14]} 36. Ke2 {[%emt 0:00:49]} f5 {[%emt 0:09:22]} 37. h3 {[%emt 0:02:34]} h5 {[%emt 0:02:20]} 38. Kf2 {[%emt 0:01:14]} Kd3 {[%emt 0:03:19]} 39. Kf3 {[%emt 0:01:04]} Rb6 {[%emt 0:07:06]} 40. Ra6 {[%emt 0:00:00]} Rb7 {[%emt 0:00:00]} 41. b6 {[%emt 0:00:00]} Kxc4 {[%emt 0:00:00]} 42. a4 {[%emt 0:00:00]} Kd5 {[%emt 0:00:00]} 43. a5 {[%emt 0:00:00]} Kc6 {[%emt 0:00:00]} 44. Ra7 {[%emt 0:00:00]} Rxa7 {[%emt 0:00:00]} 45. bxa7 {[%emt 0:00:00]} Kb7 {[%emt 0:00:00]} 46. a8=Q+ {[%emt 0:00:00]} Kxa8 {[%emt 0:00:00]} 47. Ke3 {[%emt 0:00:00]} Ka7 {[%emt 0:00:00]} 48. Kd3 {[%emt 0:00:00]} Ka6 {[%emt 0:00:00]} 49. Kc4 {[%emt 0:00:00]} Kxa5 {[%emt 0:00:00]} 50. Kxc5 {[%emt 0:00:00]} g5 {[%emt 0:00:00]} 51. fxg5 {[%emt 0:00:00]} h4 {[%emt 0:00:00]} 52. gxh4 {[%emt 0:00:00]} f4 {[%emt 0:00:00]} 53. g6 {[%emt 0:00:00]} f3 {[%emt 0:00:00]} 54. g7 {[%emt 0:00:00]} f2 {[%emt 0:00:00]} 55. g8=Q {[%emt 0:00:00]} f1=Q {[%emt 0:00:00]} 1-0

[Event "CZE-ch U14 Girls 2020"]
[Site "Kouty nad Desnou"]
[Date "2020.03.07"]
[Round "1.19"]
[White "Markova, Karolina"]
[Black "Stavova, Helena"]
[Result "1-0"]
[ECO "C32"]
[WhiteElo "1497"]
[BlackElo "1146"]
[Annotator "NA RC"]
[PlyCount "71"]
[EventDate "2020.03.07"]
[EventCountry "CZE"]
[SourceTitle "playchess.com"]
[Source "ChessBase"]
[SourceQuality "1"]
[TimeControl "5400+30"]

1. e4 {[%emt 0:00:00]} e5 {[%emt 0:00:00]} 2. f4 {[%emt 0:00:00]} d5 {[%emt 0:01:03]} 3. exd5 {[%emt 0:00:04]} e4 {[%emt 0:01:17]} 4. Nc3 {[%emt 0:02:06]} Nf6 {[%emt 0:01:04]} 5. Nge2 {[%emt 0:06:31]} Bf5 {[%emt 0:03:05]} 6. Ng3 {[%emt 0:03:33]} Bg4 {[%emt 0:04:14]} 7. Be2 {[%emt 0:00:34]} Bxe2 {[%emt 0:00:33]} 8. Qxe2 {[%emt 0:00:09]} Be7 {[%emt 0:01:25]} 9. O-O {[%emt 0:03:10]} O-O {[%emt 0:01:57]} 10. Ngxe4 {[%emt 0:01:49]} Nxd5 {[%emt 0:01:14]} 11. Nxd5 {[%emt 0:01:36]} Qxd5 {[%emt 0:00:33]} 12. Qf3 {[%emt 0:00:56]} Nd7 {[%emt 0:02:58]} 13. d3 {[%emt 0:02:48]} f5 {[%emt 0:02:21]} 14. Ng5 {[%emt 0:13:35]} Qxf3 {[%emt 0:01:28]} 15. Nxf3 {[%emt 0:00:43]} Nf6 {[%emt 0:01:54]} 16. Re1 {[%emt 0:04:59]} Bd6 {[%emt 0:02:21]} 17. Bd2 {[%emt 0:03:56]} Rac8 {[%emt 0:05:14]} 18. g3 {[%emt 0:01:46]} c5 {[%emt 0:02:24]} 19. Ne5 {[%emt 0:09:24]} Rfe8 {[%emt 0:03:55]} 20. Kg2 {[%emt 0:06:35]} Bxe5 {[%emt 0:03:15]} 21. Rxe5 {[%emt 0:03:13]} Rxe5 {[%emt 0:01:10]} 22. fxe5 {[%emt 0:00:04]} Ng4 {[%emt 0:02:49]} 23. Re1 {[%emt 0:01:11]} Re8 {[%emt 0:01:21]} 24. h3 {[%emt 0:02:38]} Nh6 {[%emt 0:01:16]} 25. Bxh6 {[%emt 0:00:47]} gxh6 {[%emt 0:00:21]} 26. Kf3 {[%emt 0:00:26]} Kf7 {[%emt 0:01:01]} 27. Kf4 {[%emt 0:00:57]} Kg6 {[%emt 0:01:00]} 28. e6 {[%emt 0:01:19]} Kf6 {[%emt 0:01:03]} 29. e7 {[%emt 0:00:07]} b6 {[%emt 0:01:23]} 30. Re5 {[%emt 0:00:14]} Rxe7 {[%emt 0:00:43]} 31. Rxe7 {[%emt 0:00:30]} Kxe7 {[%emt 0:00:11]} 32. Kxf5 {[%emt 0:00:03]} Kf7 {[%emt 0:00:29]} 33. g4 {[%emt 0:00:20]} Kg7 {[%emt 0:02:09]} 34. c3 {[%emt 0:00:36]} Kf7 {[%emt 0:00:35]} 35. d4 {[%emt 0:00:07]} cxd4 {[%emt 0:00:29]} 36. cxd4 {[%emt 0:00:06]} 1-0

[Event "CZE-ch U14 Girls 2020"]
[Site "Kouty nad Desnou"]
[Date "2020.03.07"]
[Round "1.20"]
[White "Stribna, Julie"]
[Black "Smajzrova, Dominika"]
[Result "1-0"]
[ECO "C47"]
[WhiteElo "1046"]
[BlackElo "1487"]
[Annotator "NA RC"]
[PlyCount "61"]
[EventDate "2020.03.07"]
[EventCountry "CZE"]
[SourceTitle "playchess.com"]
[Source "ChessBase"]
[SourceQuality "1"]
[TimeControl "5400+30"]

1. e4 {[%emt 0:00:00]} e5 {[%emt 0:00:00]} 2. Nf3 {[%emt 0:00:00]} Nf6 {[%emt 0:00:00]} 3. Nc3 {[%emt 0:00:05]} Nc6 {[%emt 0:00:00]} 4. d3 {[%emt 0:01:12]} Bc5 {[%emt 0:02:15]} 5. Be2 {[%emt 0:01:12]} h6 {[%emt 0:04:26]} 6. h3 {[%emt 0:04:07]} O-O {[%emt 0:00:15]} 7. O-O {[%emt 0:00:24]} Re8 {[%emt 0:01:16]} 8. Be3 {[%emt 0:03:04]} Bxe3 {[%emt 0:03:11]} 9. fxe3 {[%emt 0:01:29]} d5 {[%emt 0:01:19]} 10. exd5 {[%emt 0:02:12]} Nxd5 {[%emt 0:00:54]} 11. Nxd5 {[%emt 0:02:25]} Qxd5 {[%emt 0:00:35]} 12. e4 {[%emt 0:01:10]} Qc5+ {[%emt 0:01:45]} 13. Kh2 {[%emt 0:02:03]} Be6 {[%emt 0:03:32]} 14. c3 {[%emt 0:07:18]} Rad8 {[%emt 0:02:53]} 15. Ne1 {[%emt 0:08:22]} Bc4 {[%emt 0:10:08]} 16. Rf3 {[%emt 0:02:02]} Be6 {[%emt 0:04:24]} 17. Qd2 {[%emt 0:09:58]} Qe7 {[%emt 0:04:06]} 18. Nc2 {[%emt 0:10:12]} Qh4 {[%emt 0:02:40]} 19. Qe3 {[%emt 0:08:27]} Rd6 {[%emt 0:09:08]} 20. b3 {[%emt 0:18:56]} Bc8 {[%emt 0:06:48]} 21. Raf1 {[%emt 0:00:56]} Re7 {[%emt 0:04:45]} 22. R3f2 {[%emt 0:10:45]} b6 {[%emt 0:14:23]} 23. Kg1 {[%emt 0:02:18]} Rg6 {[%emt 0:02:13]} 24. Rf3 {[%emt 0:00:36]} Nd8 {[%emt 0:05:39]} 25. Qf2 {[%emt 0:01:34]} Qg5 {[%emt 0:08:29]} 26. Ne3 {[%emt 0:01:05]} Ne6 {[%emt 0:03:27]} 27. h4 {[%emt 0:00:56]} Qh5 {[%emt 0:03:11]} 28. Rh3 {[%emt 0:00:28]} Nf4 {[%emt 0:01:17]} 29. Bxh5 {[%emt 0:00:34]} Nxh3+ {[%emt 0:00:31]} 30. Kh2 {[%emt 0:00:31]} Nxf2 {[%emt 0:00:11]} 31. Bxg6 {[%emt 0:00:18]} 1-0

[Event "CZE-ch U14 Girls 2020"]
[Site "Kouty nad Desnou"]
[Date "2020.03.08"]
[Round "2.12"]
[White "Voriskova, Anna"]
[Black "Vankova, Marie"]
[Result "0-1"]
[ECO "D35"]
[WhiteElo "1820"]
[BlackElo "1367"]
[Annotator "NA"]
[PlyCount "80"]
[EventDate "2020.03.07"]
[EventCountry "CZE"]
[SourceTitle "playchess.com"]
[Source "ChessBase"]
[SourceQuality "1"]
[TimeControl "5400+30"]

{[%evp 8,72,12,8,27,14,12,32767,110,18,28,37,32767,4,4,0,-1,32767,32767,32767,-7,32767,32767,32767,32767,-72,-53,32767,-81,32767,-62,-62,32767,32767,32767,-165,-117,-205,-131,32767,32767,32767,-220,-472,-147,32767,-254,-264,-285,-274,-291,-330,32767,-342,-360,32767,-277,-305,32767,32767,32767,32767,-97,32767,32767,32767,-287]} 1. c4 {[%emt 0:00:00]} e6 {[%emt 0:00:00]} 2. Nc3 {[%emt 0:00:29]} d5 {[%emt 0:00:27]} 3. d4 {[%emt 0:01:05]} Nf6 {[%emt 0:00:10]} 4. Bg5 {[%emt 0:01:23]} Be7 {[%emt 0:00:20]} 5. e3 {[%emt 0:01:04]} O-O {[%emt 0:00:13]} 6. cxd5 {[%emt 0:01:26]} exd5 {[%emt 0:00:07]} 7. Bd3 {[%emt 0:00:52]} b6 {[%emt 0:00:51] [#]} (7... Re8 $11 {keeps the balance.}) 8. Nge2 {[%emt 0:01:03]} (8. Bxf6 $1 $16 Bxf6 {[#]} 9. Qh5 $1 {[%mdl 512]}) 8... Bb7 {[%emt 0:01:45]} 9. O-O {[%emt 0:02:56]} c5 {[%emt 0:03:30]} 10. f3 {[%emt 0:06:10] D35: Queen's Gambit Declined: Exchange Variation.} Nc6 {[%emt 0:04:06] [#]} 11. dxc5 $146 {[%emt 0:09:14]} ({Predecessor:} 11. Kh1 Re8 12. Rc1 g6 13. Nf4 cxd4 14. exd4 Qd6 15. Bc2 Ba6 16. Bd3 Bxd3 17. Qxd3 {½-½ (47) Debashis,D (2501)-Vocaturo,D (2609) Caleta 2018}) 11... Bxc5 {[%emt 0:13:35]} 12. Bxf6 {[%emt 0:12:13]} Bxe3+ {[%emt 0:02:06]} 13. Kh1 {[%emt 0:00:12]} Qxf6 {[%emt 0:01:45]} 14. Nxd5 {[%emt 0:01:22]} Qh6 {[%emt 0:01:26]} 15. f4 {[%emt 0:03:33]} Bc5 {[%emt 0:02:04]} 16. Be4 {[%emt 0:11:47]} Rad8 {[%emt 0:06:56]} 17. Qb1 {[%emt 0:04:24]} Rfe8 {[%emt 0:08:40]} 18. Ndc3 {[%emt 0:02:31]} Ba6 {[%emt 0:07:23]} 19. Rf3 {[%emt 0:04:42]} Bc8 {[%emt 0:13:45]} 20. f5 {[%emt 0:02:43]} Nd4 {[%emt 0:02:52]} 21. Nxd4 {[%emt 0:02:12]} Bxd4 {[%emt 0:00:24]} ({Better is} 21... Rxd4 $19 22. f6 g6) 22. Ne2 {[%emt 0:06:30]} Qd2 {[%emt 0:03:50]} 23. Nxd4 {[%emt 0:01:37]} Rxd4 {[%emt 0:02:02]} 24. Rd3 {[%emt 0:02:35]} Rxd3 {[%emt 0:00:45]} 25. Qxd3 $2 {[%emt 0:00:29]} (25. Bxd3 {was the only defense.} Bb7 26. Bf1) 25... Qxb2 $2 {[%emt 0:04:23]} (25... Qb4 $19 {is more deadly.} 26. Rd1 Bxf5 27. Bxf5 Re1+ 28. Qf1 Rxf1+ 29. Rxf1 {[#]} Qc4 $1 {[%mdl 512]}) 26. Rb1 {[%emt 0:01:53]} Qxa2 {[%emt 0:01:55]} 27. f6 {[%emt 0:01:08]} g6 {[%emt 0:03:20]} 28. Bd5 {[%emt 0:02:57]} Qe2 {[%emt 0:01:15]} 29. Qc3 {[%emt 0:02:27]} Bf5 {[%emt 0:01:20]} 30. Rg1 {[%emt 0:02:26]} Qe5 {[%emt 0:01:22]} 31. Qc6 {[%emt 0:01:12]} Rc8 {[%emt 0:01:20]} 32. Qb7 {[%emt 0:00:51]} Qc7 {[%emt 0:01:10]} 33. Qa6 {[%emt 0:00:20]} Rd8 {[%emt 0:00:59]} 34. Bf3 {[%emt 0:00:54]} Kf8 $2 {[%emt 0:01:17]} (34... h6 $19 35. h3 Rd7) 35. Qa3+ {[%emt 0:00:23]} Kg8 {[%emt 0:01:10]} 36. Re1 {[%emt 0:00:38]} Be6 $19 {[%emt 0:02:18]} 37. Rc1 {[%emt 0:01:39]} Qf4 {[%emt 0:00:31]} 38. Qb2 {[%emt 0:00:56]} a5 {[%emt 0:01:15]} 39. Rf1 {[%emt 0:01:34]} Qd4 {[%emt 0:00:42]} 40. Qb5 {[%emt 0:00:00]} Bc4 {[%emt 0:00:00]} 0-1

[Event "CZE-ch U14 Girls 2020"]
[Site "Kouty nad Desnou"]
[Date "2020.03.08"]
[Round "2.13"]
[White "Havelkova, Beata"]
[Black "Zelbova, Lada"]
[Result "0-1"]
[ECO "B07"]
[WhiteElo "1468"]
[BlackElo "1646"]
[Annotator "NA"]
[PlyCount "78"]
[EventDate "2020.03.07"]
[EventCountry "CZE"]
[SourceTitle "playchess.com"]
[Source "ChessBase"]
[SourceQuality "1"]
[TimeControl "5400+30"]

1. e4 {[%emt 0:00:00]} c5 {[%emt 0:00:00]} 2. c3 {[%emt 0:00:00]} d6 {[%emt 0:00:00]} 3. d4 {[%emt 0:01:12]} Nf6 {[%emt 0:00:00]} 4. Bd3 {[%emt 0:07:03]} Nc6 {[%emt 0:00:11]} 5. Bc2 {[%emt 0:07:05]} Qb6 {[%emt 0:17:52]} 6. Ne2 {[%emt 0:05:24]} g6 {[%emt 0:07:58]} 7. b3 {[%emt 0:06:54]} Bg7 {[%emt 0:06:14]} 8. Bb2 {[%emt 0:00:35]} O-O {[%emt 0:03:31]} 9. h3 {[%emt 0:04:22]} Qc7 {[%emt 0:02:15]} 10. Nd2 {[%emt 0:03:42]} b6 {[%emt 0:04:25]} 11. O-O {[%emt 0:02:52]} cxd4 {[%emt 0:01:53]} 12. cxd4 {[%emt 0:04:36]} Nb4 {[%emt 0:01:10]} 13. Bb1 {[%emt 0:01:24]} Ba6 {[%emt 0:00:47]} 14. Nf3 {[%emt 0:04:29]} Rac8 {[%emt 0:13:01]} 15. Qd2 {[%emt 0:10:43]} Bxe2 {[%emt 0:10:04]} 16. Qxe2 {[%emt 0:01:51]} Bh6 {[%emt 0:00:35]} 17. Nd2 {[%emt 0:09:08]} Nc2 {[%emt 0:03:37]} 18. Bxc2 {[%emt 0:03:08]} Qxc2 {[%emt 0:00:07]} 19. Bc1 {[%emt 0:00:55]} Bxd2 {[%emt 0:08:22]} 20. Qxd2 {[%emt 0:02:29]} Nxe4 {[%emt 0:03:37]} 21. Qxc2 {[%emt 0:01:02]} Rxc2 {[%emt 0:00:05]} 22. Re1 {[%emt 0:03:51]} Rfc8 {[%emt 0:01:44]} 23. Ba3 {[%emt 0:03:46]} d5 {[%emt 0:05:04]} 24. f3 {[%emt 0:02:39]} Nc3 {[%emt 0:00:16]} 25. Rxe7 {[%emt 0:02:45]} Nb5 {[%emt 0:00:11]} 26. Bb4 {[%emt 0:01:43]} a5 {[%emt 0:00:20]} 27. Be1 {[%emt 0:01:32]} Rb2 {[%emt 0:00:38]} 28. Bh4 {[%emt 0:03:24]} Kg7 {[%emt 0:03:29]} 29. Bg3 {[%emt 0:02:15]} Rcc2 {[%emt 0:01:48]} 30. Be5+ {[%emt 0:00:28]} Kf8 {[%emt 0:01:56]} 31. Bf6 {[%emt 0:00:59]} Rxg2+ {[%emt 0:00:11]} 32. Kh1 {[%emt 0:01:05]} Rh2+ {[%emt 0:00:22]} 33. Kg1 {[%emt 0:00:04]} Rbg2+ {[%emt 0:00:43]} 34. Kf1 {[%emt 0:00:10]} Rd2 {[%emt 0:01:56]} 35. Kg1 {[%emt 0:01:01]} Nxd4 {[%emt 0:00:56]} 36. Re3 {[%emt 0:02:42]} Nf5 {[%emt 0:01:08]} 37. Rc1 {[%emt 0:00:18]} Rhg2+ {[%emt 0:00:27]} 38. Kf1 {[%emt 0:00:09]} Nxe3+ {[%emt 0:00:08]} 39. Ke1 {[%emt 0:00:17]} Rde2# {[%emt 0:00:18]} 0-1